[Event "Titled Tuesday Blitz October 31 Late 2023"]
[White "Adel, Sara"]
[Black "Minina, Veronika"]
[WhiteFideId "10616764"]
[BlackFideId "4174780"]
[WhiteElo "2201"]
[BlackElo "2318"]
[Result "0-1"]
[Round "11"]
[TimeControl "180+1"]
[Date "2023.10.31"]
[WhiteClock "0:00:15"]
[BlackClock "0:00:33"]
[Board "93"]

1. e4 {[%clk 0:03:00]}  c5 {[%clk 0:02:54]} 2. Nf3 {[%clk 0:03:00]}  Nc6 {[%clk 0:02:54]} 3. d4 {[%clk 0:03:00]}  cxd4 {[%clk 0:02:53]} 4. Nxd4 {[%clk 0:03:01]}  g6 {[%clk 0:02:52]} 5. Nc3 {[%clk 0:03:00]}  Bg7 {[%clk 0:02:51]} 6. Be3 {[%clk 0:03:00]}  Nf6 {[%clk 0:02:49]} 7. f3 {[%clk 0:02:56]}  O-O {[%clk 0:02:48]} 8. Qd2 {[%clk 0:02:55]}  d6 {[%clk 0:02:39]} 9. O-O-O {[%clk 0:02:54]}  Nxd4 {[%clk 0:02:34]} 10. Bxd4 {[%clk 0:02:54]}  Bd7 {[%clk 0:02:34]} 11. g4 {[%clk 0:02:51]}  b5 {[%clk 0:02:31]} 12. Bd3 {[%clk 0:02:41]}  b4 {[%clk 0:02:30]} 13. Ne2 {[%clk 0:02:41]}  a5 {[%clk 0:02:28]} 14. h4 {[%clk 0:02:37]}  a4 {[%clk 0:02:21]} 15. h5 {[%clk 0:02:32]}  b3 {[%clk 0:02:19]} 16. a3 {[%clk 0:02:24]}  bxc2 {[%clk 0:02:17]} 17. Rdg1 {[%clk 0:02:22]}  e5 {[%clk 0:02:12]} 18. Bc3 {[%clk 0:02:20]}  Be6 {[%clk 0:02:10]} 19. hxg6 {[%clk 0:02:10]}  fxg6 {[%clk 0:02:11]} 20. Ng3 {[%clk 0:01:56]}  d5 {[%clk 0:02:00]} 21. g5 {[%clk 0:01:55]}  Ne8 {[%clk 0:01:50]} 22. Qh2 {[%clk 0:01:50]}  d4 {[%clk 0:01:36]} 23. Qxh7+ {[%clk 0:01:46]}  Kf7 {[%clk 0:01:36]} 24. Rh6 {[%clk 0:01:38]}  Qxg5+ {[%clk 0:01:31]} 25. Bd2 {[%clk 0:01:35]}  Qxh6 {[%clk 0:00:57]} 26. Bxh6 {[%clk 0:01:32]}  Rh8 {[%clk 0:00:57]} 27. Qxg6+ {[%clk 0:01:12]}  Kxg6 {[%clk 0:00:56]} 28. Nf5+ {[%clk 0:01:12]}  Kf6 {[%clk 0:00:43]} 29. Bxg7+ {[%clk 0:01:01]}  Nxg7 {[%clk 0:00:42]} 30. f4 {[%clk 0:00:35]}  Nxf5 {[%clk 0:00:36]} 31. fxe5+ {[%clk 0:00:30]}  Kxe5 {[%clk 0:00:37]} 32. exf5 {[%clk 0:00:28]}  Bxf5 {[%clk 0:00:38]} 33. Re1+ {[%clk 0:00:26]}  Kf6 {[%clk 0:00:35]} 34. Rf1 {[%clk 0:00:15]}  Rh5 {[%clk 0:00:33]} 0-1


[Site "https://www.chess.com"]

[Event "Titled Tuesday Blitz October 31 Late 2023"]
[White "pinguino120"]
[Black "Baghdasaryan, Vahe"]
[BlackFideId "13303139"]
[WhiteElo "2233"]
[BlackElo "2349"]
[Result "0-1"]
[Round "11"]
[TimeControl "180+1"]
[Date "2023.10.31"]
[WhiteClock "0:00:42"]
[BlackClock "0:00:32"]
[Board "96"]

1. e4 {[%clk 0:02:57]}  e5 {[%clk 0:02:55]} 2. Nc3 {[%clk 0:02:56]}  Nf6 {[%clk 0:02:54]} 3. g3 {[%clk 0:02:55]}  Bc5 {[%clk 0:02:46]} 4. Bg2 {[%clk 0:02:53]}  d6 {[%clk 0:02:41]} 5. Nge2 {[%clk 0:02:50]}  h5 {[%clk 0:02:41]} 6. h3 {[%clk 0:02:49]}  Nc6 {[%clk 0:02:39]} 7. d3 {[%clk 0:02:49]}  Be6 {[%clk 0:02:32]} 8. Bg5 {[%clk 0:02:39]}  Qd7 {[%clk 0:02:27]} 9. Qd2 {[%clk 0:02:25]}  O-O-O {[%clk 0:02:20]} 10. Na4 {[%clk 0:02:19]}  Kb8 {[%clk 0:01:51]} 11. Nxc5 {[%clk 0:02:15]}  dxc5 {[%clk 0:01:50]} 12. O-O-O {[%clk 0:02:14]}  Nd4 {[%clk 0:01:40]} 13. Kb1 {[%clk 0:02:07]}  Qa4 {[%clk 0:01:36]} 14. Nc3 {[%clk 0:02:06]}  Qa5 {[%clk 0:01:33]} 15. f4 {[%clk 0:01:58]}  exf4 {[%clk 0:01:29]} 16. gxf4 {[%clk 0:01:56]}  Rd6 {[%clk 0:01:02]} 17. e5 {[%clk 0:01:26]}  Rb6 {[%clk 0:01:00]} 18. exf6 {[%clk 0:01:13]}  Qa3 {[%clk 0:00:57]} 19. b3 {[%clk 0:01:07]}  Bxb3 {[%clk 0:00:48]} 20. cxb3 {[%clk 0:00:54]}  Nxb3 {[%clk 0:00:42]} 21. axb3 {[%clk 0:00:46]}  Rxb3+ {[%clk 0:00:40]} 22. Kc2 {[%clk 0:00:42]}  Qb2# {[%clk 0:00:32]} 0-1


[Site "https://www.chess.com"]

[Event "Titled Tuesday Blitz October 31 Late 2023"]
[White "Oliveira, Tiago Batista"]
[Black "SlippperyWhenWet"]
[WhiteFideId "2108291"]
[WhiteElo "2057"]
[BlackElo "2297"]
[Result "0-1"]
[Round "11"]
[TimeControl "180+1"]
[Date "2023.10.31"]
[WhiteClock "0:00:00"]
[BlackClock "0:01:53"]
[Board "99"]

1. d4 {[%clk 0:02:59]}  g6 {[%clk 0:02:57]} 2. c4 {[%clk 0:02:59]}  Bh6 {[%clk 0:02:57]} 3. Bxh6 {[%clk 0:02:47]}  Nxh6 {[%clk 0:02:58]} 4. Nc3 {[%clk 0:02:45]}  Nc6 {[%clk 0:02:57]} 5. e4 {[%clk 0:02:44]}  e5 {[%clk 0:02:55]} 6. dxe5 {[%clk 0:02:40]}  Qe7 {[%clk 0:02:52]} 7. Nf3 {[%clk 0:02:35]}  Ng4 {[%clk 0:02:50]} 8. Nd5 {[%clk 0:02:32]}  Qd8 {[%clk 0:02:50]} 9. Qd2 {[%clk 0:01:56]}  Ngxe5 {[%clk 0:02:45]} 10. Nxe5 {[%clk 0:01:49]}  Nxe5 {[%clk 0:02:46]} 11. Qf4 {[%clk 0:01:47]}  d6 {[%clk 0:02:36]} 12. Nf6+ {[%clk 0:01:37]}  Kf8 {[%clk 0:02:34]} 13. Qh6+ {[%clk 0:01:35]}  Ke7 {[%clk 0:02:34]} 14. Nd5+ {[%clk 0:01:34]}  Ke8 {[%clk 0:02:31]} 15. Qg7 {[%clk 0:01:30]}  Rf8 {[%clk 0:02:28]} 16. Nf6+ {[%clk 0:00:52]}  Ke7 {[%clk 0:02:28]} 17. O-O-O {[%clk 0:00:45]}  Be6 {[%clk 0:02:23]} 18. b3 {[%clk 0:00:25]}  b5 {[%clk 0:02:08]} 19. f4 {[%clk 0:00:22]}  Nc6 {[%clk 0:01:57]} 20. Nd5+ {[%clk 0:00:05]}  Bxd5 {[%clk 0:01:57]} 21. exd5 {[%clk 0:00:05]}  Nb4 {[%clk 0:01:54]} 22. Re1+ {[%clk 0:00:05]}  Kd7 {[%clk 0:01:54]} 23. Qxh7 {[%clk 0:00:03]}  Qf6 {[%clk 0:01:53]} 24. Qh3+ {[%clk 0:00:00]}  Kd8 {[%clk 0:01:53]} 0-1


[Site "https://www.chess.com"]

[Event "Titled Tuesday Blitz October 31 Late 2023"]
[White "Vargas, Mauricio"]
[Black "VitaliyChayka"]
[WhiteFideId "4404572"]
[WhiteElo "1857"]
[BlackElo "2145"]
[Result "0-1"]
[Round "11"]
[TimeControl "180+1"]
[Date "2023.10.31"]
[WhiteClock "0:00:00"]
[BlackClock "0:01:23"]
[Board "102"]

1. e4 {[%clk 0:03:00]}  d6 {[%clk 0:02:54]} 2. Nc3 {[%clk 0:02:57]}  g6 {[%clk 0:02:53]} 3. Bc4 {[%clk 0:02:58]}  Nf6 {[%clk 0:02:47]} 4. d3 {[%clk 0:02:57]}  c5 {[%clk 0:02:46]} 5. f4 {[%clk 0:02:52]}  Bg7 {[%clk 0:02:45]} 6. Nf3 {[%clk 0:02:52]}  O-O {[%clk 0:02:45]} 7. O-O {[%clk 0:02:52]}  Nc6 {[%clk 0:02:45]} 8. Nd5 {[%clk 0:02:43]}  Na5 {[%clk 0:02:41]} 9. Nxf6+ {[%clk 0:02:34]}  Bxf6 {[%clk 0:02:40]} 10. Bb5 {[%clk 0:02:26]}  a6 {[%clk 0:02:39]} 11. Ba4 {[%clk 0:02:24]}  b5 {[%clk 0:02:39]} 12. Bb3 {[%clk 0:02:23]}  Nxb3 {[%clk 0:02:39]} 13. axb3 {[%clk 0:02:23]}  Qc7 {[%clk 0:02:35]} 14. Qe1 {[%clk 0:02:21]}  Bb7 {[%clk 0:02:30]} 15. g4 {[%clk 0:02:16]}  c4 {[%clk 0:02:29]} 16. bxc4 {[%clk 0:02:09]}  bxc4 {[%clk 0:02:28]} 17. g5 {[%clk 0:02:01]}  Bg7 {[%clk 0:02:26]} 18. d4 {[%clk 0:01:54]}  c3 {[%clk 0:02:15]} 19. bxc3 {[%clk 0:01:44]}  Rac8 {[%clk 0:02:11]} 20. Bd2 {[%clk 0:01:43]}  Qd7 {[%clk 0:02:02]} 21. Kh1 {[%clk 0:01:39]}  Qg4 {[%clk 0:01:54]} 22. Qe3 {[%clk 0:01:27]}  Rc4 {[%clk 0:01:40]} 23. Rab1 {[%clk 0:00:09]}  Ba8 {[%clk 0:01:27]} 24. Rg1 {[%clk 0:00:08]}  Qh3 {[%clk 0:01:25]} 25. Rg3 {[%clk 0:00:00]}  Qd7 {[%clk 0:01:23]} 0-1


[Site "https://www.chess.com"]

[Event "Titled Tuesday Blitz October 31 Late 2023"]
[White "Jelcic, Marko"]
[Black "Gyulamiryan-koryun"]
[WhiteFideId "14406489"]
[WhiteElo "2130"]
[BlackElo "1895"]
[Result "1-0"]
[Round "11"]
[TimeControl "180+1"]
[Date "2023.10.31"]
[WhiteClock "0:00:33"]
[BlackClock "0:00:00"]
[Board "104"]

1. e4 {[%clk 0:03:00]}  e5 {[%clk 0:02:07]} 2. Nf3 {[%clk 0:03:00]}  Nc6 {[%clk 0:02:07]} 3. d4 {[%clk 0:03:00]}  exd4 {[%clk 0:02:06]} 4. Bc4 {[%clk 0:03:00]}  Nf6 {[%clk 0:02:06]} 5. e5 {[%clk 0:02:59]}  d5 {[%clk 0:02:06]} 6. Bb5 {[%clk 0:02:58]}  Ne4 {[%clk 0:02:06]} 7. Nxd4 {[%clk 0:02:37]}  Bd7 {[%clk 0:02:05]} 8. Bxc6 {[%clk 0:02:36]}  bxc6 {[%clk 0:02:05]} 9. O-O {[%clk 0:02:36]}  Bc5 {[%clk 0:02:05]} 10. f3 {[%clk 0:02:34]}  Ng5 {[%clk 0:02:05]} 11. f4 {[%clk 0:02:33]}  Ne4 {[%clk 0:02:05]} 12. Be3 {[%clk 0:02:30]}  Bb6 {[%clk 0:02:04]} 13. Nc3 {[%clk 0:02:27]}  f5 {[%clk 0:01:48]} 14. Nxe4 {[%clk 0:02:10]}  dxe4 {[%clk 0:01:45]} 15. Qd2 {[%clk 0:02:06]}  c5 {[%clk 0:01:35]} 16. Nb3 {[%clk 0:02:04]}  Bb5 {[%clk 0:01:27]} 17. Rfd1 {[%clk 0:01:50]}  Qxd2 {[%clk 0:01:22]} 18. Rxd2 {[%clk 0:01:46]}  c4 {[%clk 0:01:22]} 19. Nd4 {[%clk 0:01:42]}  Bd7 {[%clk 0:01:16]} 20. Kf2 {[%clk 0:01:34]}  O-O-O {[%clk 0:01:06]} 21. c3 {[%clk 0:01:32]}  Rhe8 {[%clk 0:00:54]} 22. Rad1 {[%clk 0:01:30]}  Ba4 {[%clk 0:00:50]} 23. Rc1 {[%clk 0:01:21]}  g5 {[%clk 0:00:44]} 24. g3 {[%clk 0:01:15]}  gxf4 {[%clk 0:00:33]} 25. gxf4 {[%clk 0:01:14]}  Bd7 {[%clk 0:00:20]} 26. Rg1 {[%clk 0:01:09]}  c5 {[%clk 0:00:19]} 27. Ne2 {[%clk 0:01:01]}  Rg8 {[%clk 0:00:14]} 28. Rdd1 {[%clk 0:00:52]}  Rg6 {[%clk 0:00:10]} 29. Rg3 {[%clk 0:00:45]}  Rdg8 {[%clk 0:00:10]} 30. Rdg1 {[%clk 0:00:44]}  Bd8 {[%clk 0:00:10]} 31. Bxc5 {[%clk 0:00:37]}  Bh4 {[%clk 0:00:08]} 32. Bxa7 {[%clk 0:00:34]}  Bxg3+ {[%clk 0:00:00]} 33. Rxg3 {[%clk 0:00:33]} 1-0


[Site "https://www.chess.com"]

[Event "Titled Tuesday Blitz October 31 Late 2023"]
[White "Ghosh, Chanchal Kumer"]
[Black "Burke, Paul"]
[WhiteFideId "10201858"]
[BlackFideId "2605767"]
[WhiteElo "1952"]
[BlackElo "1887"]
[Result "1-0"]
[Round "11"]
[TimeControl "180+1"]
[Date "2023.10.31"]
[WhiteClock "0:00:17"]
[BlackClock "0:00:03"]
[Board "105"]

1. e4 {[%clk 0:03:00]}  e5 {[%clk 0:02:59]} 2. Nf3 {[%clk 0:03:00]}  Nc6 {[%clk 0:02:59]} 3. Bc4 {[%clk 0:02:59]}  Be7 {[%clk 0:02:59]} 4. c3 {[%clk 0:02:59]}  Nf6 {[%clk 0:02:59]} 5. d4 {[%clk 0:02:58]}  exd4 {[%clk 0:02:58]} 6. e5 {[%clk 0:02:58]}  Ne4 {[%clk 0:02:58]} 7. Bd5 {[%clk 0:02:39]}  Nc5 {[%clk 0:02:57]} 8. cxd4 {[%clk 0:02:38]}  Ne6 {[%clk 0:02:55]} 9. Bb3 {[%clk 0:02:25]}  Na5 {[%clk 0:02:18]} 10. d5 {[%clk 0:02:14]}  Nxb3 {[%clk 0:02:13]} 11. axb3 {[%clk 0:02:13]}  Ng5 {[%clk 0:01:55]} 12. Nxg5 {[%clk 0:01:54]}  Bxg5 {[%clk 0:01:55]} 13. f4 {[%clk 0:01:53]}  Bh4+ {[%clk 0:01:48]} 14. g3 {[%clk 0:01:53]}  Be7 {[%clk 0:01:48]} 15. d6 {[%clk 0:01:48]}  cxd6 {[%clk 0:01:36]} 16. exd6 {[%clk 0:01:45]}  Bf6 {[%clk 0:01:35]} 17. Qe2+ {[%clk 0:01:39]}  Kf8 {[%clk 0:01:35]} 18. Be3 {[%clk 0:01:36]}  g6 {[%clk 0:01:22]} 19. O-O {[%clk 0:01:31]}  Kg7 {[%clk 0:01:20]} 20. Qd2 {[%clk 0:01:31]}  Re8 {[%clk 0:01:10]} 21. Nc3 {[%clk 0:01:29]}  b6 {[%clk 0:01:02]} 22. Nd5 {[%clk 0:01:19]}  Re6 {[%clk 0:00:46]} 23. Nxf6 {[%clk 0:00:49]}  Rxf6 {[%clk 0:00:46]} 24. Bd4 {[%clk 0:00:48]}  Kg8 {[%clk 0:00:46]} 25. Bxf6 {[%clk 0:00:40]}  Qxf6 {[%clk 0:00:45]} 26. Qd5 {[%clk 0:00:37]}  Rb8 {[%clk 0:00:41]} 27. Rxa7 {[%clk 0:00:35]}  Qxb2 {[%clk 0:00:38]} 28. Re1 {[%clk 0:00:25]}  Qc3 {[%clk 0:00:13]} 29. Re8+ {[%clk 0:00:23]}  Kg7 {[%clk 0:00:13]} 30. Qe5+ {[%clk 0:00:23]}  Qxe5 {[%clk 0:00:12]} 31. fxe5 {[%clk 0:00:23]}  f6 {[%clk 0:00:08]} 32. exf6+ {[%clk 0:00:18]}  Kxf6 {[%clk 0:00:07]} 33. Rc7 {[%clk 0:00:18]}  Ba6 {[%clk 0:00:03]} 34. Rxb8 {[%clk 0:00:17]} 1-0